Cogmind - Beta 13 @@@ ROGUE MODE // 2024.04.24 @ 15:45:09 Player: jupart Result: Destroyed by 3B-V30(R) with Subdweller Laser Performance ------------- Evolutions (0) 0 Regions Visited (3) 600 Robots Destroyed (18) 90 Value Destroyed (631) 631 Prototype IDs (0) 0 Alien Tech Used (0) 0 Bonus (0) 0 TOTAL SCORE: 1321 Bonus ------- None Cogmind --------- Core Integrity 0/250 Matter 208/300 Energy 250/250 System Corruption 0% Temperature Cool (6) Movement Treading (160) Location -10/Subcaves Parts ------- > --- POWER (1) -------- Ion Engine > --- PROPULSION (2) --- Light Treads Spiked Treads > --- UTILITY (2) ------ (None) > --- WEAPON (2) ------- Battle Rifle > --- INVENTORY (5) ---- Light Treads Small Storage Unit Tractor Beam Small Laser Peak State ------------ > --- POWER ------------ Ion Engine > --- PROPULSION ------- Light Treads Spiked Treads > --- UTILITY ---------- Scrap Shield > --- WEAPON ----------- Subdweller Laser Heavy Battle Rifle > --- INVENTORY -------- Light Treads Small Storage Unit Tractor Beam Small Laser Battle Rifle [Rating: 14] Favorites ----------- Power Ion Engine Engine Ion Engine Propulsion Light Treads Treads Light Treads Leg Aluminum Leg Utility Small Storage Unit Device Structural Scanner Storage Small Storage Unit Protection Scrap Shield Weapon Light Assault Rifle Energy Gun Subdweller Laser Ballistic Gun Light Assault Rifle Launcher Grenade Launcher Build | -11 -10 -10 -10 ------- Run | Yrd Mat Min Sub Slots Evolved . | . . . . Power . | . . . . Propulsion . | . . . . Utility . | . . . . Weapon . | . . . . Parts Attached 23 | . 10 1 12 Power 3 | . 1 . 2 Engine 3 | . 1 . 2 Core . | . . . . Reactor . | . . . . Propulsion 7 | . 5 . 2 Treads 4 | . 2 . 2 Leg 3 | . 3 . . Wheel . | . . . . Hover . | . . . . Flight . | . . . . Utility 3 | . 2 . 1 Device 2 | . 2 . . Storage . | . . . . Processor . | . . . . Hackware . | . . . . Protection 1 | . . . 1 Artifact . | . . . . Weapon 10 | . 2 1 7 Energy Gun 4 | . . . 4 Energy Cannon . | . . . . Ballistic Gun 5 | . 2 . 3 Ballistic Cannon . | . . . . Launcher 1 | . . 1 . Special Weapon . | . . . . Impact Weapon . | . . . . Slashing Weapon . | . . . . Piercing Weapon . | . . . . Special Melee Weapon . | . . . . Unidentified Prototypes . | . . . . Parts Lost 9 | . 1 1 7 Power 3 | . 1 . 2 Propulsion 1 | . . . 1 Utility 1 | . . . 1 Weapon 4 | . . 1 3 Highest Loss Streak 2 | . 1 1 2 To Critical Strikes . | . . . . Average Slot Usage (%) 91 | . 98 99 84 Engine 13 | . 14 14 13 Treads 21 | . 2 28 27 Leg 6 | . 25 . . Device 7 | . 13 14 2 Storage 7 | . 14 14 2 Protection 6 | . . . 11 Energy Gun 5 | . . . 10 Ballistic Gun 17 | . 28 14 13 Launcher 3 | . . 13 1 Naked Turns . | . . . . Heaviest Build 31 | 13 14 15 31 Greatest Support 40 | 20 40 40 40 Greatest Overweight (x) 1 | . 1 . . Average Overweight (x) . | . . . . Largest Inventory Capacity 8 | . 8 8 8 Average Capacity 6 | . 8 8 5 Most Carried 8 | . 8 5 5 Average Carried 5 | . 7 4 4 Final Capacity 8 | 8 8 8 5 Final Carried 6 | 6 5 4 4 Class Distribution -------------------- 67% | Mutant 32% | Derelict-Mutant Dominant Class ---------------- Mutant | -10/Materials Mutant | -10/Mines Derelict-Mutant | -10/Subcaves Resources | -11 -10 -10 -10 ----------- Run | Yrd Mat Min Sub Matter Collected 699 | 189 157 67 286 Remotely . | . . . . Salvage Created 630 | . 103 82 445 Parts 38 | . 3 7 28 Haulers Intercepted . | . . . . Recyclers Shooed 1 | . . 1 . Parts Field Recycled . | . . . . Retrieved Matter . | . . . . Parts Self-Destructed 6 | . . . 6 Prevented . | . . . . Kills | -11 -10 -10 -10 ------- Run | Yrd Mat Min Sub Combat Hostiles Destroyed 18 | . 2 5 11 Guns 11 | . 2 . 9 AOE 7 | . . 5 2 Classes Destroyed 4 | . 1 1 2 Swarmer 3 | . . 3 . Grunt 5 | . 2 2 1 Sentry 1 | . . . 1 Subdweller 9 | . . . 9 Best Kill Streak 3 | . 2 3 2 Combat Bots Only 3 | . 2 3 2 Max Kills in Single Turn 1 | . 1 1 1 Gunslinging . | . . . . Exploded 1 | . . 1 1 Melee . | . . . . Uniques/NPCs Destroyed . | . . . . Combat | -11 -10 -10 -10 -------- Run | Yrd Mat Min Sub Hostile Shots Fired 131 | . 35 21 75 Missed 26 | . 6 8 12 Damage Taken 1886 | . 382 157 1347 Core 259 | . 96 12 151 Absorbed by Shields . | . . . . Core Remaining (%) 100 | 100 . . . Volleys Fired 102 | . 19 10 73 Largest 2 | . 2 2 2 Hottest 93 | . 40 50 93 Shots Fired 185 | . 38 20 127 Gun 174 | . 38 14 122 Cannon . | . . . . Launcher 11 | . . 6 5 Special . | . . . . Kinetic 126 | . 38 14 74 Thermal 48 | . . . 48 Explosive 11 | . . 6 5 Electromagnetic . | . . . . Robot Hit Streak 23 | . 7 5 23 Robot Miss Streak 6 | . 6 3 3 Penetration Max . | . . . . Secondary Targets 2 | . 1 . 1 Max Gunslinging Chain 1 | . 1 . 1 Shots Hit Robots 117 | . 21 10 86 Core Hits 36 | . 7 8 21 Critical Kills . | . . . . Critical Parts Destroyed 1 | . . . 1 Critical Strikes 1 | . . . 1 Destroy 1 | . . . 1 Melee Attacks . | . . . . Impact . | . . . . Slashing . | . . . . Piercing . | . . . . Sneak Attacks . | . . . . Combat Hostiles . | . . . . Follow-up Attacks . | . . . . Damage Inflicted 2371 | . 262 350 1759 Guns 1803 | . 253 60 1490 Cannons . | . . . . Explosions 545 | . . 276 269 Melee . | . . . . Ramming 23 | . 9 14 . Kinetic 1209 | . 253 60 896 Thermal 594 | . . . 594 Explosive 545 | . . 276 269 Electromagnetic . | . . . . Impact . | . . . . Slashing . | . . . . Piercing . | . . . . Highest Corruption . | . . . . Average Corruption . | . . . . Corruption Purged . | . . . . Corruption Blocked . | . . . . Overload Shots . | . . . . Overflow Damage 3 | . . . 3 Projectiles . | . . . . Explosions 3 | . . . 3 Melee . | . . . . Knockbacks . | . . . . Impact . | . . . . Kinetic . | . . . . Secondary . | . . . . Self-Inflicted Damage 68 | . . 9 59 Shots 6 | . . 1 5 Rammed 6 | . 1 5 . Targets Rammed 7 | . 2 5 . Kicked 1 | . 1 . . Crushed . | . . . . Highest Temperature 26 | . 5 26 . Average Temperature 10 | . 5 11 . Received Heat Transfer 609 | . 225 66 318 Siege Activations . | . . . . Robots Corrupted . | . . . . Combat Hostiles . | . . . . Parts Fried . | . . . . Impact Corruptions . | . . . . Robots Melted . | . . . . Combat Hostiles . | . . . . Parts Melted . | . . . . Heat Transferred 875 | . . . 875 Parts Sabotaged . | . . . . Parts Stolen . | . . . . Parts Stripped . | . . . . Power Chain Reactions . | . . . . Alert | -11 -10 -10 -10 ------- Run | Yrd Mat Min Sub Peak Influence 152 | . 50 152 . Initial . | . . . . Average 69 | . 21 132 . Maximum Alert Level . | . . . . Low Security (%) 100 | . 100 100 . Level 1 . | . . . . Level 2 . | . . . . Level 3 . | . . . . Level 4 . | . . . . Level 5 . | . . . . High Security . | . . . . Max Security . | . . . . Squads Dispatched 2 | . 2 . . Investigation 1 | . 1 . . Extermination . | . . . . Reinforcement 1 | . 1 . . Assault . | . . . . Garrison . | . . . . Intercept . | . . . . Searches Triggered . | . . . . Construction Impeded . | . . . . Haulers Reinforced . | . . . . Active Scanning Responses . | . . . . Cargo Convoy Interrupts . | . . . . Stealth | -11 -10 -10 -10 --------- Run | Yrd Mat Min Sub Distress Signals . | . . . . Communications Jammed . | . . . . Distress Signals . | . . . . Times Spotted 27 | . 6 5 16 Peak Tracking Total 3 | . 2 3 3 Tactical Retreats 1 | . . . 1 Traps | -11 -10 -10 -10 ------- Run | Yrd Mat Min Sub Traps Triggered 3 | . 2 . 1 Indirectly . | . . . . Trap Hack Attempts . | . . . . Triggered . | . . . . Disarmed . | . . . . Reprogrammed . | . . . . Reused . | . . . . Traps Extracted . | . . . . Installed . | . . . . Triggered . | . . . . Machines | -11 -10 -10 -10 ---------- Run | Yrd Mat Min Sub Machines Disabled . | . . . . Max in Single Turn . | . . . . Machines Repaired . | . . . . Machines Dismantled . | . . . . Machines Sabotaged . | . . . . Overloaded Fab Kills . | . . . . Hacking | -11 -10 -10 -10 --------- Run | Yrd Mat Min Sub Machines Accessed 4 | . 2 1 1 Terminals 3 | . 2 1 . Fabricators . | . . . . Repair Stations . | . . . . Recycling Units . | . . . . Scanalyzers . | . . . . Garrison Access . | . . . . Total Hacks 7 | . 3 1 3 Successful 4 | . . 1 3 Failed 3 | . 3 . . Catastrophic . | . . . . Database Lockouts . | . . . . Manual 3 | . 3 . . Terminals 4 | . 3 1 . Fabricators . | . . . . Repair Stations . | . . . . Recycling Units . | . . . . Scanalyzers . | . . . . Garrison Access . | . . . . Terminal Hacks 4 | . . 1 3 Record 3 | . . . 3 Zone Layout 1 | . . 1 . Fabricator Hacks . | . . . . Repair Station Hacks . | . . . . Recycling Unit Hacks . | . . . . Scanalyzer . | . . . . Garrison Access Hacks . | . . . . Unauthorized Hacks . | . . . . Terminals . | . . . . Fabricators . | . . . . Repair Stations . | . . . . Recycling Units . | . . . . Scanalyzers . | . . . . Garrison Access . | . . . . Data Cores Recovered . | . . . . Used . | . . . . Hacking Detections 3 | . 2 1 . Full Trace Events . | . . . . Feedback Events . | . . . . Feedback Blocked . | . . . . Robot Schematics Acquired . | . . . . Robots Built . | . . . . Authchips . | . . . . Time . | . . . . Total Robot Build Rating . | . . . . Part Schematics Acquired . | . . . . Parts Built . | . . . . Authchips . | . . . . Time . | . . . . Total Part Build Rating . | . . . . Parts Repaired . | . . . . Time . | . . . . Parts Recycled . | . . . . Recycled Matter . | . . . . Retrieved Matter . | . . . . Retrieved Components . | . . . . Parts Scanalyzed . | . . . . Part Schematics Acquired . | . . . . Parts Damaged . | . . . . Bothacking | -11 -10 -10 -10 ------------ Run | Yrd Mat Min Sub Used RIF Installer . | . . . . Robots Hacked . | . . . . Non-combat . | . . . . Combat . | . . . . Robot Hacks Applied . | . . . . Relay Couplers Released . | . . . . Fabnet Peak Effective % . | . . . . Robots Rewired . | . . . . Allies Hacked . | . . . . Hacks Repelled . | . . . . Allies | -11 -10 -10 -10 -------- Run | Yrd Mat Min Sub Total Allies 2 | . . 2 . Largest Group 2 | . . 2 2 Highest-Rated Group 49 | . . 49 49 Highest-Rated Ally 31 | . . 31 31 Total Orders . | . . . . Ally Attacks 2 | . . . 2 Total Damage 42 | . . . 42 Kills . | . . . . Allies Corrupted . | . . . . Allies Melted . | . . . . Intel | -11 -10 -10 -10 ------- Run | Yrd Mat Min Sub Robot Analysis Total . | . . . . Derelict Logs Recovered 1 | . . . 1 Drone Launches . | . . . . Drone Recoveries . | . . . . Exploration | -11 -10 -10 -10 ------------- Run | Yrd Mat Min Sub Turns Passed 2120 | . 557 424 1139 Spaces Moved 1132 | 1 339 241 551 Core . | . . . . Treads 820 | . 28 241 551 Legs 312 | 1 311 . . Wheels . | . . . . Hover . | . . . . Flight . | . . . . Fastest Speed 120 | 120 120 160 160 Average Speed 149 | 120 123 160 160 Slowest Speed 190 | 120 190 160 160 Overloaded Moves . | . . . . Propulsion Burnouts . | . . . . Robots Hopped . | . . . . Cave-ins Triggered . | . . . . Exploration Rate (%) 31 | 1 56 42 25 Regions Visited 3 Branch Regions 2 Pre-discovered Areas . | . . . . Known Exits Taken . | . . . . Unknown Exits Taken 3 | 1 1 1 . Scrap Searched 8 | . . . 8 Spaces Dug . | . . . . Terrain Destroyed 54 | . . 40 14 Melee . | . . . . Projectile . | . . . . AOE 54 | . . 40 14 Terrain Rammed . | . . . . Walls Destroyed . | . . . . Machines Disabled . | . . . . Actions | -11 -10 -10 -10 --------- Run | Yrd Mat Min Sub Total 1388 | . 445 259 684 Wait 94 | . 62 3 29 Move 1129 | . 338 240 551 Hop . | . . . . Pick Up 7 | . 5 . 2 Fast Attach 9 | . 6 . 3 Attach 10 | . 2 1 7 Detach 4 | . . . 4 Swap 4 | . 2 . 2 Drop 12 | . 9 . 3 Fire 102 | . 19 10 73 Melee . | . . . . Ram . | . . . . Kick 1 | . 1 . . Crush 6 | . 1 5 . Escape Stasis . | . . . . Rewire . | . . . . Trap . | . . . . Miscellaneous 10 | . . . 10 Route ------- -11/Scrapyard -10/Materials -10/Mines -10/Subcaves History --------- Turn | Location | Event 1 | -11/Scrapyard | Discovered new exit (range 0) 1 | -11/Scrapyard | Entered Materials 313 | -10/Materials | Build established: Mutant 529 | -10/Materials | Discovered new exit (range 9) 558 | -10/Materials | Entered Mines 640 | -10/Mines | Met a Derelict bent on vengeance 697 | -10/Mines | Discovered new exit (range 12) 982 | -10/Mines | Entered Subcaves 982 | -10/Subcaves | Accompanied by 2 allies 987 | -10/Subcaves | Led the pair of lost Derelicts to an unsafe place 1023 | -10/Subcaves | Core integrity fell below 50% 1082 | -10/Subcaves | A swath of the cavern ceiling suddenly collapsed 1146 | -10/Subcaves | Disturbed a concealed Subdweller 1255 | -10/Subcaves | Core integrity fell below 20% 1272 | -10/Subcaves | Learned Materials emergency access door positions 1526 | -10/Subcaves | Build established: Derelict-Mutant 1588 | -10/Subcaves | Visited Clippyterm 1592 | -10/Subcaves | Learned Factory fabricator intel 2090 | -10/Subcaves | A Subdweller sparked back to life 2090 | -10/Subcaves | A Subdweller sparked back to life 2090 | -10/Subcaves | A Subdweller sparked back to life 2121 | -10/Subcaves | Destroyed by 3B-V30(R) with Subdweller Laser Last Messages --------------- 01790_ Acquired 18 matter. 01793_ Scrap Shield Fragment affixed to Scrap Shield (+47). 01797_ Scrap Shield Fragment affixed to Scrap Shield (+27). 01843_ UD-O9Q(u) builds Twisted Machinery. 01874_ CL-ID2(R): "OHNO!" 01897_ Destroyed Scrap Shield. 01900_ Sub. Laser shoots sparks and powers down. 01900_ CL-ID2(R) destroyed. 01903_ Dropped Broken Sub. Laser. 01905_ Acquired 31 matter. 01968_ UD-O9Q(u) tweaks Twisted Machinery. 02074_ Scrap Shield Fragment affixed to Scrap Shield (+34). 02090_ EJ-VCR(R) creaks and sparks as it begins to move. 02090_ VJ-SO8(R) creaks and sparks as it begins to move. 02090_ 3B-V30(R) creaks and sparks as it begins to move. 02109_ EJ-VCR(R) destroyed. 02111_ Scrap Shield destroyed. 02116_ VJ-SO8(R) affixes Scrap Shield Fragment to Scrap Shield. 02119_ Hvy. Battle Rifle destroyed. Map ----- +----------------------------------------------------+ | ??????????#"" ## # #?## #"### | | ??????????#"X # #??#####?? | | ??????????#"" ## # ##????????? | | ??????????#"""## ## ## # #####?????????? | | ??????????##### #############?????????????? | | ??????????????# ###??????????????????????? | | ??????????????## #??????????????????????? | | ???????????????# #???????????????######## | | ???????????????## ## ##??????????####?######## | | ????????????????# ## #?????????##"%####" ""!% | | ????????????????# # ##?????????#= !"###" | | ????????????????##### #??????????# [ #*& !"&[ | | ???????????????????# #??????????## " #%#&%# | | ???????????????????# # #????????###### ###*&= " | | ?????????????####### ###????????###" #### ## | | ????????????## " ##?????????##" [!! | | ????????????# " #?????????##$ ^ ##### = | | ????????????# $ #?????????### # | | ????????????#" " #??????????## "## ! " | | ????????????# " # ##???????????####" ## ""# | | ????????????##"## # ##???????######### "##### | | ????????????????# # #???????######## " ### | | ????????????????# #??????#### | | ???????????????# ## ##?????### ##### ### | | ???????????????##?## ######## #### #### | | ??????????????###?# #@# ## ## ####? | | ??????????????# #### R!u #### ###?? | | ??????????????# #?## R# ### # # ##??? | | ??????????????# #??######## ####? | | ??????????????# ####?????## ## ##### | | ??????????????## ####????## =%! ## ### | | ???????????????# ###???#####* | | ???????????????## ###??####"""" | | ????????????????## ####### """" | | ?????????????????## " #######"""" | | ??????????????????#""" ## " # | | ??????????????????##""## ## & # | | ?????????????????####### # &% ## | | ????????????????####### ## # ### | | ????????????????### # # ## | | ????????????????## ## ## # ## | | ????????????????## " ###### ## ## # | | ????????????????######"" #######! ### | | ????????????????#######" ###### ### | | ?????????????????###### #####""= ### ### | | ?????????????????## ## """###"" % | | ?????????????????## ####""" = | | ???????????????#### ###"" " # # #### # | | ???????????????# ## ###"" # ########## | | ??????????????## ### ### ## ############ # | +----------------------------------------------------+ Best States ------------- Heat Dissipation 35 Energy Generation 10 Energy Capacity 250 Matter Stores 300 Matter Capacity 300 Sight Range 16 Terrain Scan Density 10 Armor Coverage 800 Evasion (%) 55 Recoil Reduction 2 Item Schematics ----------------- None Robot Schematics ------------------ None Fabricated ------------ Nothing Alien Tech Used ----------------- None Achievements -------------- None Challenges ------------ None Game ------ Seed IntegrityWeaponPlating Manual? 0 Play Time 00:22:22 Cumulative 8.0 hours Start 2024.04.24 @ 14:29:21 End 2024.04.24 @ 15:45:09 Sessions 1 Manual Loads 0 Difficulty Rogue Special Mode None Game No. 13 Rogue 13 Adventurer 0 Explorer 0 Win Type - Total 0 Types 0/0/0/0/0/0/0/0/0 Lore% 8 Gallery% 22 Achievement% 16 Wizard Run 0 Options --------- Layout 2 ASCII 1 Keyboard 1 Movement Vi Keybinds 0 Fullscreen 0 Font 16/Tamsyn Map View 64x57 Zoom Use 0% Tactical HUD 1 Map Filters NONE Filters NONE Steam 0 RUN: 8a470ddc-c88f-4ae0-b505-bdfa8312b7a0